Cogmind - Beta 14 @@@ ROGUE MODE // 2024.10.21 @ 07:17:01 Player: weedlord420 Result: Self-destructed Performance ------------- Evolutions (2) 1000 Regions Visited (5) 1000 Robots Destroyed (25) 125 Value Destroyed (493) 493 Prototype IDs (0) 0 Alien Tech Used (0) 0 Bonus (14) 14 TOTAL SCORE: 2632 Bonus ------- Follower Combat Kills 14 Cogmind --------- Core Integrity 459/550 Matter 286/300 Energy 100/100 System Corruption 1% Temperature Cool (9) Movement Rolling (110) Ox2 Location -8/Materials Parts ------- > --- POWER (1) -------- (None) > --- PROPULSION (3) --- Wheel > --- UTILITY (5) ------ Improved Heat Sink Improved Heat Sink Large Storage Unit Sensor Array > --- WEAPON (2) ------- Assault Rifle Heavy Assault Rifle > --- INVENTORY (15) --- Ion Engine Wheel Wheel Wheel High-capacity Matter Pod (200) Structural Scanner Terrain Scanner Medium Armor Plating Shield Generator Hacking Suite Pulse Rifle Heavy Assault Rifle Assault Cannon Plasma Cutter Heavy Explosive Trap Peak State ------------ > --- POWER ------------ (None) > --- PROPULSION ------- Wheel Armored Wheel > --- UTILITY ---------- Improved Heat Sink Improved Heat Sink Large Storage Unit Sensor Array Light Armor Plating > --- WEAPON ----------- Assault Rifle Heavy Assault Rifle > --- INVENTORY -------- Ion Engine Wheel Wheel Wheel High-capacity Matter Pod Structural Scanner Terrain Scanner Medium Armor Plating Shield Generator Hacking Suite Pulse Rifle Heavy Assault Rifle Assault Cannon Plasma Cutter Heavy Explosive Trap [Rating: 17] Favorites ----------- Power Ion Engine Engine Ion Engine Propulsion Wheel Wheel Wheel Utility Core Shielding Device Improved Heat Sink Storage Large Storage Unit Protection Core Shielding Weapon Light Assault Rifle Energy Gun Small Laser Ballistic Gun Light Assault Rifle Launcher Grenade Launcher Special Weapon Plasma Cutter Build | -11 -10 -10 -10 -9 -8 ------- Run | Yrd Mat Min Exi Min Mat Slots Evolved 4 | . . . . . 4 Power . | . . . . . . Propulsion 1 | . . . . . 1 Utility 3 | . . . . . 3 Weapon . | . . . . . . Parts Attached 27 | 6 5 3 . 5 8 Power 3 | 1 . 1 . 1 . Engine 3 | 1 . 1 . 1 . Core . | . . . . . . Reactor . | . . . . . . Propulsion 4 | 2 . . . 2 . Treads . | . . . . . . Leg . | . . . . . . Wheel 4 | 2 . . . 2 . Hover . | . . . . . . Flight . | . . . . . . Utility 8 | 1 3 . . . 4 Device 3 | . . . . . 3 Storage 3 | 1 2 . . . . Processor . | . . . . . . Hackware . | . . . . . . Protection 2 | . 1 . . . 1 Artifact . | . . . . . . Weapon 12 | 2 2 2 . 2 4 Energy Gun 3 | 1 1 1 . . . Energy Cannon . | . . . . . . Ballistic Gun 6 | 1 . . . 2 3 Ballistic Cannon . | . . . . . . Launcher 2 | . 1 1 . . . Special Weapon 1 | . . . . . 1 Impact Weapon . | . . . . . . Slashing Weapon . | . . . . . . Piercing Weapon . | . . . . . . Special Melee Weapon . | . . . . . . Unidentified Prototypes . | . . . . . . Parts Lost 9 | . . 2 . 3 4 Power 3 | . . 1 . 1 1 Propulsion 2 | . . . . 1 1 Utility 2 | . . . . . 2 Weapon 2 | . . 1 . 1 . Highest Loss Streak 3 | . . 2 . 3 2 To Critical Strikes . | . . . . . . Average Slot Usage (%) 96 | . 99 99 100 97 81 Engine 12 | . 14 13 14 12 7 Wheel 26 | . 28 28 28 26 18 Device 1 | . . . . . 13 Storage 13 | . 14 14 14 14 9 Protection 14 | . 13 14 14 14 15 Energy Gun 11 | . 12 13 14 12 . Ballistic Gun 14 | . 14 14 14 15 17 Peak Build Rating 17 | 6 8 8 8 9 17 Average Rating 8 | 3 7 7 8 8 14 On Entrance 6 | . 6 8 8 8 9 Naked Turns . | . . . . . . Heaviest Build 34 | 12 28 30 28 28 34 Greatest Support 26 | 26 26 26 26 26 22 Greatest Overweight (x) 1 | . 1 1 1 1 1 Average Overweight (x) . | . . . 1 1 1 Largest Inventory Capacity 15 | 8 15 15 15 15 15 Average Capacity 14 | 6 12 15 15 15 15 Most Carried 15 | 5 11 12 12 15 15 Average Carried 11 | 2 7 11 12 14 14 Final Capacity 15 | 8 15 15 15 15 15 Final Carried 15 | 1 11 12 12 13 15 Class Distribution -------------------- 94% | Mutant 5% | Scavenger-Mutant Dominant Class ---------------- Mutant | -10/Materials Mutant | -10/Mines Mutant | -10/Exiles Mutant | -9/Mines Mutant | -8/Materials Resources | -11 -10 -10 -10 -9 -8 ----------- Run | Yrd Mat Min Exi Min Mat Matter Collected 700 | 247 122 87 . 33 211 Remotely . | . . . . . . Salvage Created 693 | . 260 51 . 91 291 Parts 58 | . 27 4 . 15 12 Haulers Intercepted . | . . . . . . Recyclers Shooed 1 | . 1 . . . . Parts Field Recycled . | . . . . . . Retrieved Matter . | . . . . . . Parts Self-Destructed . | . . . . . . Prevented . | . . . . . . Kills | -11 -10 -10 -10 -9 -8 ------- Run | Yrd Mat Min Exi Min Mat Combat Hostiles Destroyed 16 | . 4 3 . 5 4 Guns 14 | . 2 3 . 5 4 AOE 2 | . 2 . . . . Classes Destroyed 10 | . 5 1 . 1 3 Worker 1 | . . . . . 1 Builder 2 | . 2 . . . . Tunneler 1 | . . . . 1 . Recycler 2 | . 1 . . . 1 Operator 1 | . 1 . . . . Watcher 2 | . 2 . . . . Swarmer 8 | . . 3 . 5 . Grunt 6 | . 4 . . . 2 Duelist 1 | . . . . . 1 Sentry 1 | . . . . . 1 Best Kill Streak 5 | . 5 3 . 4 4 Combat Bots Only 4 | . 3 3 . 4 2 Max Kills in Single Turn 1 | . 1 1 . 1 1 Gunslinging . | . . . . . . Exploded 1 | . 1 . . . . Melee . | . . . . . . Uniques/NPCs Destroyed . | . . . . . . Combat | -11 -10 -10 -10 -9 -8 -------- Run | Yrd Mat Min Exi Min Mat Hostile Shots Fired 104 | . 24 9 . 29 42 Missed 29 | . 6 3 . 8 12 Damage Taken 1155 | . 227 86 . 355 487 Core 234 | . 53 14 . 76 91 Absorbed by Shields . | . . . . . . Redirected to Shielding 51 | . 11 2 . 18 20 Core Remaining (%) 71 | 100 . . . 42 . Volleys Fired 74 | . 32 4 . 15 23 Largest 2 | . 2 2 . 2 2 Hottest 60 | . 60 60 . 60 43 Shots Fired 145 | . 62 8 . 30 45 Gun 135 | . 54 7 . 30 44 Cannon . | . . . . . . Launcher 9 | . 8 1 . . . Special 1 | . . . . . 1 Kinetic 96 | . 32 4 . 16 44 Thermal 40 | . 22 3 . 14 1 Explosive 9 | . 8 1 . . . Electromagnetic . | . . . . . . Robot Hit Streak 15 | . 9 2 . 8 15 Robot Miss Streak 6 | . 6 3 . 6 3 Penetration Max . | . . . . . . Secondary Targets 1 | . . 1 . . . Max Gunslinging Chain 1 | . . 1 . . . Shots Hit Robots 84 | . 32 4 . 14 34 Core Hits 43 | . 18 3 . 7 15 Critical Kills . | . . . . . . Critical Parts Destroyed . | . . . . . . Critical Strikes . | . . . . . . Melee Attacks . | . . . . . . Impact . | . . . . . . Slashing . | . . . . . . Piercing . | . . . . . . Sneak Attacks . | . . . . . . Combat Hostiles . | . . . . . . Follow-up Attacks . | . . . . . . Damage Inflicted 1379 | . 702 56 . 156 465 Guns 996 | . 325 50 . 156 465 Cannons . | . . . . . . Explosions 383 | . 377 6 . . . Melee . | . . . . . . Ramming . | . . . . . . Kinetic 681 | . 137 19 . 60 465 Thermal 315 | . 188 31 . 96 . Explosive 383 | . 377 6 . . . Electromagnetic . | . . . . . . Impact . | . . . . . . Slashing . | . . . . . . Piercing . | . . . . . . Highest Corruption 1 | . . . . . 1 Average Corruption 1 | . . . . . 1 Corruption Purged . | . . . . . . Corruption Blocked . | . . . . . . Effects 1 | . . . . . 1 Matter Fused 1 | . . . . . 1 Overload Shots . | . . . . . . Overflow Damage 31 | . 13 18 . . . Projectiles . | . . . . . . Explosions 31 | . 13 18 . . . Melee . | . . . . . . Knockbacks . | . . . . . . Impact . | . . . . . . Kinetic . | . . . . . . Secondary . | . . . . . . Self-Inflicted Damage 45 | . 7 38 . . . Shots 2 | . 1 1 . . . Rammed . | . . . . . . Targets Rammed . | . . . . . . Kicked . | . . . . . . Crushed . | . . . . . . Highest Temperature 58 | . 58 10 . 40 . Average Temperature 21 | . 21 7 . 22 . Received Heat Transfer 369 | . 117 . . . 252 Siege Activations . | . . . . . . Robots Corrupted . | . . . . . . Combat Hostiles . | . . . . . . Parts Fried . | . . . . . . Impact Corruptions . | . . . . . . Robots Melted . | . . . . . . Combat Hostiles . | . . . . . . Parts Melted . | . . . . . . Heat Transferred 725 | . 425 75 . 225 . Parts Sabotaged . | . . . . . . Parts Stolen . | . . . . . . Parts Stripped . | . . . . . . Power Chain Reactions . | . . . . . . Alert | -11 -10 -10 -10 -9 -8 ------- Run | Yrd Mat Min Exi Min Mat Peak Influence 202 | . 202 64 . 169 106 Initial . | . . . . . . Average 50 | . 85 31 . 46 51 Maximum Alert Level 1 | . 1 . . . . Low Security (%) 98 | 100 93 100 . 100 100 Level 1 1 | . 6 . . . . Level 2 . | . . . . . . Level 3 . | . . . . . . Level 4 . | . . . . . . Level 5 . | . . . . . . High Security . | . . . . . . Max Security . | . . . . . . Squads Dispatched 3 | . 3 . . . . Investigation 2 | . 2 . . . . Extermination . | . . . . . . Reinforcement 1 | . 1 . . . . Assault . | . . . . . . Garrison . | . . . . . . Intercept . | . . . . . . Searches Triggered . | . . . . . . Construction Impeded . | . . . . . . Haulers Reinforced . | . . . . . . Active Scanning Responses . | . . . . . . Cargo Convoy Interrupts . | . . . . . . Stealth | -11 -10 -10 -10 -9 -8 --------- Run | Yrd Mat Min Exi Min Mat Distress Signals 1 | . 1 . . . . Communications Jammed . | . . . . . . Distress Signals . | . . . . . . Times Spotted 28 | . 11 3 . 8 6 Peak Tracking Total 4 | . 4 2 . 4 3 Tactical Retreats . | . . . . . . Traps | -11 -10 -10 -10 -9 -8 ------- Run | Yrd Mat Min Exi Min Mat Traps Triggered 3 | . 2 . . . 1 Indirectly . | . . . . . . Trap Hack Attempts . | . . . . . . Triggered . | . . . . . . Disarmed . | . . . . . . Reprogrammed . | . . . . . . Reused . | . . . . . . Traps Extracted . | . . . . . . Installed . | . . . . . . Triggered . | . . . . . . Most Traps Carried 2 | . . . . 2 1 Machines | -11 -10 -10 -10 -9 -8 ---------- Run | Yrd Mat Min Exi Min Mat Machines Disabled . | . . . . . . Max in Single Turn . | . . . . . . Machines Repaired . | . . . . . . Machines Dismantled . | . . . . . . Machines Sabotaged . | . . . . . . Overloaded Fab Kills . | . . . . . . Hacking | -11 -10 -10 -10 -9 -8 --------- Run | Yrd Mat Min Exi Min Mat Machines Accessed 4 | . 3 . 1 . . Terminals 3 | . 3 . . . . Fabricators . | . . . . . . Repair Stations . | . . . . . . Recycling Units . | . . . . . . Scanalyzers . | . . . . . . Garrison Access . | . . . . . . Total Hacks 29 | . 6 . 23 . . Successful 26 | . 3 . 23 . . Failed 3 | . 3 . . . . Catastrophic . | . . . . . . Database Lockouts . | . . . . . . Manual 6 | . 6 . . . . Terminals 6 | . 6 . . . . Fabricators . | . . . . . . Repair Stations . | . . . . . . Recycling Units . | . . . . . . Scanalyzers . | . . . . . . Garrison Access . | . . . . . . Terminal Hacks 24 | . 1 . 23 . . Record 23 | . . . 23 . . Locate Traps 1 | . 1 . . . . Fabricator Hacks . | . . . . . . Repair Station Hacks . | . . . . . . Recycling Unit Hacks . | . . . . . . Scanalyzer . | . . . . . . Garrison Access Hacks . | . . . . . . Unauthorized Hacks 2 | . 2 . . . . Terminals 2 | . 2 . . . . Botnet 2 | . 2 . . . . Fabricators . | . . . . . . Repair Stations . | . . . . . . Recycling Units . | . . . . . . Scanalyzers . | . . . . . . Garrison Access . | . . . . . . Data Cores Recovered . | . . . . . . Used . | . . . . . . Hacking Detections 2 | . 2 . . . . Full Trace Events 1 | . 1 . . . . Feedback Events . | . . . . . . Feedback Blocked . | . . . . . . Robot Schematics Acquired . | . . . . . . Robots Built . | . . . . . . Authchips . | . . . . . . Time . | . . . . . . Total Robot Build Rating . | . . . . . . Part Schematics Acquired . | . . . . . . Parts Built . | . . . . . . Authchips . | . . . . . . Time . | . . . . . . Total Part Build Rating . | . . . . . . Parts Repaired . | . . . . . . Time . | . . . . . . Parts Recycled . | . . . . . . Recycled Matter . | . . . . . . Retrieved Matter . | . . . . . . Retrieved Components . | . . . . . . Parts Scanalyzed . | . . . . . . Part Schematics Acquired . | . . . . . . Parts Damaged . | . . . . . . Bothacking | -11 -10 -10 -10 -9 -8 ------------ Run | Yrd Mat Min Exi Min Mat Used RIF Installer . | . . . . . . Robots Hacked . | . . . . . . Non-combat . | . . . . . . Combat . | . . . . . . Robot Hacks Applied . | . . . . . . Relay Couplers Released . | . . . . . . Fabnet Peak Effective % . | . . . . . . Robots Rewired . | . . . . . . Allies Hacked . | . . . . . . Hacks Repelled . | . . . . . . Allies | -11 -10 -10 -10 -9 -8 -------- Run | Yrd Mat Min Exi Min Mat Total Allies 1 | . . . . 1 . Largest Group 1 | . . . . 1 . Highest-Rated Group 31 | . . . . 31 . Highest-Rated Ally 31 | . . . . 31 . Total Orders . | . . . . . . Ally Attacks 4 | . . . . 4 . Total Damage 42 | . . . . 42 . Kills 2 | . . . . 2 . Allies Corrupted . | . . . . . . Allies Melted . | . . . . . . Intel | -11 -10 -10 -10 -9 -8 ------- Run | Yrd Mat Min Exi Min Mat Robot Analysis Total . | . . . . . . Derelict Logs Recovered 4 | . . 2 . 2 . Drone Launches . | . . . . . . Drone Recoveries . | . . . . . . Exploration | -11 -10 -10 -10 -9 -8 ------------- Run | Yrd Mat Min Exi Min Mat Turns Passed 2331 | 35 463 615 241 653 324 Spaces Moved 1875 | 32 357 543 230 582 131 Core 13 | 13 . . . . . Treads . | . . . . . . Legs . | . . . . . . Wheels 1862 | 19 357 543 230 582 131 Hover . | . . . . . . Flight . | . . . . . . Fastest Speed 50 | 50 90 90 105 100 100 Average Speed 101 | 74 96 104 105 101 100 Slowest Speed 105 | 100 105 105 105 105 100 Overloaded Moves . | . . . . . . Propulsion Burnouts . | . . . . . . Robots Hopped . | . . . . . . Cave-ins Triggered . | . . . . . . Exploration Rate (%) 53 | 3 64 87 59 95 10 Regions Visited 5 Branch Regions 3 Pre-discovered Areas 4 | . . 3 1 . . Known Exits Taken 1 | . . . . 1 . Unknown Exits Taken 4 | 1 1 1 1 . . Scrap Searched 3 | . . 1 . 2 . Spaces Dug . | . . . . . . Terrain Destroyed 47 | . 38 9 . . . Melee . | . . . . . . Projectile . | . . . . . . AOE 47 | . 38 9 . . . Terrain Rammed . | . . . . . . Walls Destroyed . | . . . . . . Machines Disabled . | . . . . . . Actions | -11 -10 -10 -10 -9 -8 --------- Run | Yrd Mat Min Exi Min Mat Total 2162 | 42 417 582 229 616 276 Wait 152 | . 9 30 . 6 107 Move 1870 | 31 356 542 229 581 131 Hop . | . . . . . . Pick Up 32 | 5 13 3 . 6 5 Fast Attach 4 | 2 . . . . 2 Attach 12 | 4 1 2 . 3 2 Detach . | . . . . . . Swap 11 | . 4 1 . 2 4 Drop 7 | . 2 . . 3 2 Fire 74 | . 32 4 . 15 23 Melee . | . . . . . . Ram . | . . . . . . Kick . | . . . . . . Crush . | . . . . . . Escape Stasis . | . . . . . . Rewire . | . . . . . . Trap . | . . . . . . Miscellaneous . | . . . . . . Route ------- -11/Scrapyard -10/Materials (discovered 2 exits: [*Mat] / [*Min]) -10/Mines (discovered 3 exits: [*Mat x2] / *Exi) -10/Exiles -9/Mines (discovered 2 exits: *Mat x2) -8/Materials (discovered 1 exit: Fac) History --------- Turn | Location | Event 12 | -11/Scrapyard | Discovered new exit (range 16) 36 | -11/Scrapyard | Entered Materials 307 | -10/Materials | Build established: Mutant 324 | -10/Materials | Discovered new exit (range 9) 481 | -10/Materials | Discovered new exit (range 13) 499 | -10/Materials | Entered Mines 576 | -10/Mines | Met a Derelict bent on vengeance 695 | -10/Mines | Learned location of Storage (-7) 768 | -10/Mines | Discovered new exit (range 10) 905 | -10/Mines | Discovered new exit (range 12) 1066 | -10/Mines | Deemed a non-threat by the Exiles lab entrance 1066 | -10/Mines | Discovered new exit (range 5) 1114 | -10/Mines | Entered Exiles 1140 | -10/Exiles | Met 8R-AWN 1159 | -10/Exiles | Met EX-HEX 1206 | -10/Exiles | Met EX-BIN 1303 | -10/Exiles | Met EX-DEC 1311 | -10/Exiles | Learned location of Zion (-6) 1343 | -10/Exiles | Discovered new exit (range 10) 1355 | -10/Exiles | Entered Mines 1358 | -9/Mines | Received a Mining Laser from a helpful Derelict 1484 | -9/Mines | Found a hidden stash of uninstalled traps 1618 | -9/Mines | Identified exit to Materials 1680 | -9/Mines | Learned 4 Materials zone layouts 1845 | -9/Mines | Discovered exit to Materials (range 16) 1925 | -9/Mines | Core integrity fell below 50% 1955 | -9/Mines | Lost 3 parts (1p1n1w) 2008 | -9/Mines | Entered Materials 2008 | -8/Materials | Evolved 4 slots: Propulsion x1, Utility x3 2009 | -8/Materials | Identified exit to Factory 2332 | -8/Materials | Self-destructed Last Messages --------------- 02303_ R-06 Scavenger collects Particle Gun. 02304_ K-01 Serf collects debris. 02305_ R-06 Scavenger destroyed. 02305_ R-06 Scavenger collects Aluminum Leg. 02306_ U-05 Engineer builds a Door. 02307_ System corrupted: Matter fused (-6). 02308_ Acquired 40 matter. 02310_ K-01 Serf collects debris. 02310_ Acquired 47 matter. 02310_ R-06 Scavenger collects Tractor Beam. 02313_ K-01 Serf collects debris. 02315_ Acquired 81 matter. 02315_ R-06 Scavenger collects Particle Gun. 02316_ K-01 Serf collects debris. 02318_ R-06 Scavenger collects Aluminum Leg. 02320_ K-01 Serf destroyed. 02322_ R-06 Scavenger collects Lgt. Ion Engine. 02326_ Lgt. Armor Plating destroyed. 02332_ Arm. Wheel destroyed. 02332_ U-05 Engineer builds a Door. Map ----- +----------------------------------------------------+ | # T # # ! #???????????????????????????? | | # # ########???????????????????????????? | | # """ """ # #??????????????????????????????????? | | # """ """ # #??????????????????????????????????? | | # """ """ # #??????????????????????????????????? | | # %+ #??????????????????????????????????? | | # !# #??????????????????????????????????? | | # = # #??????????????????????????????????? | | ########### ################+## # ??????? | | ??????????# # #???????# # ??????? | | ??????????# # #???????# # """ ""??????? | | ??????????# # #???????# # """ ""??????? | | ??????????+ + !! #????#### # """ ""??????? | | ??????????# # !! #???? ########??????? | | ??????????# # !! #????#######?##?????????????? | | ?????????## ##############?????????????????????? | | ??# ###### "%####### #?????????????????????? | | ??# #?????????????????????? | | ??+ #?????????????????????? | | ??# """" #?????????????????????? | | ??######## """" #?????????????????????? | | ?????????### """" ########????#####??????? | | ???????????# r ^g # #????# ??????? | | ??????????## g!% # "" #????# " ??????? | | ??????????# u+ """ #????# T "??????? | | ??????????# u@#= """ #????# " "??????? | | ??????????# % # """ #????# "??????? | | ??????????# * "T" # #????# "??????? | | ??????????# * "" ########????# ??????? | | ??????????## ###########???????????# ??????? | | ???????????# #????????????#######??# ??????? | | ???????????# #????????????# ########??????? | | ???????????# ?#?############ ??????? | | ## # ????????????????????????? | | ## # ????????????????????????? | | ?# # ?????????????????????????+##### | | ?#######+#########????????????????????????? ## | | ###### #????# ?????????????????????????S #? | | ###### ?????????????????????????"" #? | | + ?????????????????????????"" #? | | ###### ????????????????????????? #? | | ###### #????# ?????????????????????????####### | | #?## ##????# ?????????????????????????# | | " #??# #?????# ?????????????????????????# | | " #??# #?????# ?????????????????????????# | | " #??# #?????# ?????????????????????????# | | " #??# #?????##?????????????????????????# | | " #??# #??????#?????????????????????????# | | #??# #??????#?????????????????????????# | | ####??# #??????#?????????????????????????+ | +----------------------------------------------------+ Best States ------------- Heat Dissipation 59 Energy Generation 10 Energy Capacity 250 Matter Stores 300 Matter Capacity 300 Sight Range 16 Robot Scan Range 14 Terrain Scan Density 10 Armor Coverage 150 Core Shielding 20 Evasion (%) 50 Item Schematics ----------------- None Robot Schematics ------------------ None Fabricated ------------ Nothing Alien Tech Used ----------------- None Achievements -------------- None Challenges ------------ None Game ------ Seed SpreadWarlordChainsaw Manual? 0 Play Time 00:13:05 Cumulative 79.4 hours Start 2024.10.20 @ 18:30:44 End 2024.10.21 @ 07:17:01 Sessions 5 Manual Loads 0 Difficulty Rogue Special Mode None Game No. 131 Rogue 130 Adventurer 1 Explorer 0 Win Type - Total 0 Types 0/0/0/0/0/0/0/0/0 Lore% 49 Gallery% 51 Achievement% 44 Wizard Run 0 Options --------- Layout 1 ASCII 0 Keyboard 0 Movement Mouse Keybinds 0 Fullscreen 2 Font 24/Terminus Map View 50x35 Zoom Use 0% Tactical HUD 1 Map Filters NONE Filters NONE Steam 1 RUN: 4fd6e316-128b-4243-b1b3-985db692c668